bitfinex/quotes_ETHUSD_20220220
["timestamp","ask_amount","ask_price","bid_price","bid_amount"]
[1645339177866,6e-05,2634.2,2633.9,0.01227561]
[1645339178914,6e-05,2634.2,2633.7,12.2197]
[1645339179116,0.5,2634.9,2634.2,0.00074]
[1645339179915,1.0,2634.7,2634.2,0.00074]
[1645339180513,0.9496703,2635.6,2634.2,0.00074]
[1645339180819,0.1897,2635.9,2634.2,13.04406039]
[1645339180820,0.94955,2635.8,2634.2,13.04406039]
[1645339181017,5.9557,2636.2,2634.4,11.43]
[1645339181216,3.5,2636.2,2634.5,0.1897]
[1645339181419,3.63819997,2636.2,2634.5,0.1897]
[1645339181615,3.63819997,2636.2,2634.4,12.2197]
[1645339182090,1.89931,2635.7,2634.4,0.7897]
[1645339182378,2.84871,2636.1,2634.2,11.43074]
[1645339182379,1.89972,2635.4,2634.2,0.00074]
[1645339182873,1.0,2634.6,2634.2,0.00074]
[1645339183073,1.89995,2634.5,2634.2,0.00074]
[1645339183375,4.1437,2635.6,2634.2,0.00074]
[1645339183376,1.0,2635.0,2634.2,0.00074]
[1645339183574,1.0,2635.0,2634.2,11.43074]
[1645339183773,1.0,2635.0,2634.4,11.43]
[1645339183977,1.0,2635.0,2634.2,0.30074]
[1645339184174,1.94971,2635.0,2634.2,0.30074]
[1645339184374,1.0,2634.6,2634.2,0.00074]
[1645339184575,2.89991,2634.6,2634.2,0.00074]
[1645339185174,3.8499,2634.6,2634.2,0.00074]
[1645339185378,2.12865836,2634.6,2634.2,0.00074]
[1645339185575,0.94999,2634.5,2634.2,0.00074]
[1645339185811,1.89995,2634.5,2634.2,0.00074]
[1645339186311,0.94996,2634.5,2634.2,0.00074]
[1645339187313,1.0,2634.4,2634.2,0.00074]
[1645339187914,1.9000967,2634.4,2634.2,0.00074]
[1645339188315,0.94996,2634.5,2634.2,0.00074]
[1645339188518,1.79986,2635.1,2634.2,0.00074]
[1645339188916,1.79986,2635.1,2634.3,11.43]
[1645339188917,1.0,2634.9,2634.3,11.43]
[1645339189120,1.0,2634.9,2634.2,0.00074]
[1645339189317,1.0,2634.9,2634.2,1.61432717]
[1645339189578,3.6897,2635.4,2634.2,1.61432717]
[1645339189579,3.5,2635.2,2634.2,1.61432717]
[1645339189767,2.84943,2635.6,2634.2,0.00074]
[1645339189768,1.0,2634.4,2634.2,0.00074]
[1645339190367,0.94996,2634.3,2634.2,0.00074]
[1645339190770,3.44943,2635.6,2634.2,0.00074]
[1645339190968,0.1897,2635.3,2634.2,0.00074]
[1645339191167,0.1897,2635.4,2634.2,13.04457181]
[1645339191367,0.94959,2635.3,2634.4,11.43]
[1645339191569,0.94959,2635.3,2634.5,13.04383181]
[1645339191770,0.94959,2635.3,2634.2,1.30185055]
[1645339191966,0.94959,2635.3,2634.3,1.61357275]
[1645339192167,0.94959,2635.3,2634.3,1.91357275]
[1645339192369,1.0,2635.0,2634.4,1.61357275]
[1645339192772,1.0,2635.0,2634.5,11.73]
[1645339192969,1.0,2635.0,2634.6,1.61357275]
[1645339193426,1.0,2635.0,2634.7,2.69462257]
[1645339193721,1.0,2635.0,2634.8,1.61357275]
[1645339193925,1.0,2635.0,2634.9,1.61357275]
[1645339194123,1.0,2635.0,2634.5,0.3]
[1645339194124,1.0,2635.0,2634.6,1.61357275]
[1645339194329,1.0,2635.0,2634.7,1.61357275]
[1645339194524,1.0,2635.3,2634.8,1.61357275]
[1645339194728,0.9494569,2636.0,2634.9,1.61357275]
[1645339195027,0.94942,2635.8,2635.0,1.61357275]
[1645339195226,0.94942,2635.8,2635.1,1.61357275]
[1645339195426,0.94942,2635.8,2635.2,1.61357275]
[1645339195629,0.94942,2635.8,2635.3,2.51895553]
[1645339195826,0.94942,2635.8,2635.4,1.61357275]
[1645339196026,0.94942,2635.8,2635.0,0.3]
[1645339196227,0.94942,2635.8,2635.1,1.61324577]
[1645339196429,0.9495297,2635.7,2635.2,1.61324577]
[1645339196632,0.9495297,2635.7,2634.2,6.92425937]
[1645339196633,3.79886,2635.6,2634.2,6.92425937]
[1645339196833,1.8996817,2635.3,2634.3,2.33004663]
[1645339197077,0.94984,2635.0,2634.4,1.61352726]
[1645339197275,0.94984,2635.0,2634.5,1.61352726]
[1645339197470,0.94988,2634.9,2634.6,1.61352726]
[1645339197670,1.8998,2634.8,2634.2,0.00074]
[1645339197870,1.0,2634.6,2634.2,0.00074]
[1645339198071,0.94996,2634.5,2634.2,0.00074]
[1645339198373,1.0,2634.9,2634.3,11.43]
[1645339198569,1.0,2634.9,2634.4,1.61381642]
[1645339198871,10.5,2634.6,2634.5,1.61381642]
[1645339199071,10.5,2634.6,2634.2,1.61455642]
[1645339199268,11.5,2634.6,2634.3,1.61381642]
[1645339199475,11.5,2634.6,2634.4,1.61381642]
[1645339199669,11.5,2634.6,2634.5,1.61381642]
[1645339199872,10.5,2634.6,2634.5,1.61381642]
[1645339200073,11.4499,2634.6,2634.2,0.00074]
[1645339200270,1.0,2634.4,2634.2,0.00074]
[1645339201325,0.94997,2634.4,2634.2,0.00074]
[1645339201527,1.54997,2634.4,2634.2,0.00074]
[1645339201729,1.90052,2634.3,2634.2,0.00074]
[1645339201925,0.95037,2634.2,2633.6,1.61398263]
[1645339202326,1.0,2633.7,2633.6,1.61398263]
[1645339203427,1.9502,2633.7,2633.6,1.61398263]
[1645339203628,2.851,2634.1,2633.6,1.61398263]
[1645339203834,1.0,2634.2,2633.6,1.61398263]
[1645339204031,7.5,2633.7,2633.6,1.61398263]
[1645339204232,0.1897,2634.8,2633.6,13.05613925]
[1645339204438,0.1897,2635.3,2633.8,11.43]
[1645339204701,0.5,2635.1,2634.2,11.43]
[1645339204883,4.5,2634.5,2634.4,11.43]
[1645339205082,4.5,2634.5,2634.4,13.04398263]
[1645339205284,4.5,2634.5,2634.3,0.2912]
[1645339205489,2.77438972,2634.5,2633.6,0.3]
[1645339205684,0.95007,2634.3,2633.7,1.61384286]
[1645339205886,0.95007,2634.3,2633.5,1.2]
[1645339206083,0.95007,2634.3,2633.6,1.61383718]
[1645339206388,2.5001145,2634.3,2633.5,0.6]
[1645339206589,0.3,2633.9,2633.5,0.6]
[1645339206986,0.87382296,2634.0,2633.5,0.6]
[1645339207189,0.95036,2633.8,2633.5,0.6]
[1645339207387,0.1897,2633.7,2633.5,0.6]
[1645339207787,3.80176,2633.8,2633.5,0.6]
[1645339207986,4.10176,2633.8,2633.5,0.6]
[1645339208412,3.80176,2633.8,2633.5,1e-08]
[1645339208613,7.60176,2633.8,2633.5,1e-08]
[1645339208813,0.3,2633.7,2633.5,1e-08]
[1645339209013,0.95037,2633.7,2633.5,1e-08]
[1645339209215,0.3,2633.6,2633.5,1e-08]
[1645339209413,1.25037,2633.7,2633.5,1e-08]
[1645339209613,0.3,2633.6,2633.5,1e-08]
[1645339210014,1.25037,2633.7,2633.5,1e-08]
[1645339210215,0.95037,2633.7,2633.5,1e-08]
[1645339210416,1.25037,2633.7,2633.5,1e-08]
[1645339210618,0.3,2633.6,2633.5,1e-08]
[1645339211218,3.8,2633.6,2633.5,1e-08]
[1645339211431,0.3,2633.6,2633.5,1e-08]
[1645339211820,3.8,2633.6,2633.5,1e-08]
[1645339212093,3.8,2633.6,2632.1,0.1897]
[1645339212094,2.8519931,2633.3,2632.1,0.1897]
[1645339212293,1.0,2632.4,2632.1,0.1897]
[1645339212496,3.0418,2633.5,2632.1,0.1897]
[1645339212695,4.091052,2633.7,2632.2,1.6145126]
[1645339212890,4.091052,2633.7,2632.9,0.85852149]
[1645339213192,3.0,2633.0,2632.3,15.384]
[1645339213390,1.9005182,2634.1,2632.5,11.43]
[1645339213590,3.0,2633.5,2632.7,11.43]
[1645339213793,0.1897,2634.5,2633.1,1.0]
[1645339213994,0.19809795,2635.0,2633.6,11.43]
[1645339214194,1.08797037,2635.3,2633.8,11.43]
[1645339214396,5.0,2634.7,2633.7,1.61369661]
[1645339214596,4.1437,2634.6,2632.6,0.1897]
[1645339214792,4.1437,2634.6,2632.6,7.0775]
[1645339214793,5.0,2634.1,2632.6,7.0775]
[1645339214998,3.954,2634.0,2632.6,7.0775]
[1645339215192,1.04943,2633.7,2632.6,7.0775]
[1645339215392,0.95064,2633.2,2632.3,0.91870604]
[1645339215594,0.95064,2633.2,2632.0,7.3985]
[1645339215817,1.0,2632.7,2632.0,10.8985]
[1645339216020,1.0,2632.7,2632.0,7.3985]
[1645339216415,2.90136,2632.7,2632.0,7.3985]
[1645339216625,1.0,2632.7,2632.4,1.04901026]
[1645339217218,0.95057,2632.8,2632.4,12.47901026]
[1645339217419,0.95057,2632.8,2632.4,1.04901026]
[1645339218921,0.95057,2632.8,2632.5,1.61452178]
[1645339219768,7e-05,2632.8,2632.5,1.61452178]
[1645339219966,7e-05,2632.8,2632.6,11.43]
[1645339220165,7e-05,2632.8,2632.7,16.54452178]
[1645339220370,7e-05,2632.8,2632.7,1.91452178]
[1645339220667,7e-05,2632.8,2632.4,11.43]
[1645339220869,7e-05,2632.8,2632.0,7.3985]
[1645339221266,7e-05,2632.8,2632.1,1.61475739]
[1645339221868,1.0,2632.6,2632.1,1.61475739]
[1645339222069,0.950767,2632.4,2632.0,7.6985]
[1645339222268,0.950767,2632.4,2632.0,0.3]
[1645339222469,0.950767,2632.4,2632.1,1.61471471]
[1645339222668,0.950767,2632.4,2631.9,1.45374383]
[1645339222878,1.0,2632.2,2631.2,0.1899]
[1645339223070,1.90223,2632.0,2631.3,1.61516845]
[1645339223331,1.0,2631.5,2631.0,1.0]
[1645339223520,1.95121,2631.5,2631.0,1.00294993]
[1645339224118,1.95103,2631.8,2631.1,1.61535186]
[1645339224320,1.0,2631.8,2631.1,13.04535186]
[1645339224519,1.0,2631.8,2631.2,1.61535186]
[1645339224719,1.0,2631.8,2631.0,1.0]
[1645339224720,1.0,2631.8,2631.3,1.61535186]
[1645339224918,1.0,2631.8,2631.7,1.05295389]
[1645339225525,3.8035615,2632.3,2632.1,0.72279062]
[1645339225919,4.7544565,2632.3,2632.1,0.72279062]
[1645339226720,5.7054165,2632.3,2632.1,0.72279062]
[1645339227366,0.95087,2632.2,2632.1,0.72279062]
[1645339227570,0.95087,2632.2,2632.1,0.67279062]
[1645339227765,1.95087,2632.2,2632.1,0.67279062]
[1645339229470,0.95087,2632.2,2632.1,0.67279062]
[1645339229668,0.95087,2632.2,2631.6,0.00152624]
[1645339229868,1.9511,2631.7,2631.6,0.00152624]
[1645339230380,1.0,2631.7,2631.2,0.90701087]
[1645339230933,1.0,2632.1,2631.2,1.20701087]
[1645339231134,1.0,2632.1,2631.2,12.63701087]
[1645339231338,0.9509,2632.0,2631.3,11.43]
[1645339231737,1.0,2631.8,2631.1,0.00176989]
[1645339232340,1.0,2631.5,2631.1,0.00176989]
[1645339232536,1.95124,2631.5,2631.1,0.00176989]
[1645339232737,1.90245,2631.4,2631.0,1.0]
[1645339232939,1.90245,2631.4,2631.0,1.00294993]
[1645339233143,2.39235,2631.4,2631.0,1.00294993]
[1645339233340,2.39235,2631.4,2630.8,0.00177013]
[1645339233536,0.5,2631.0,2630.8,0.00177013]
[1645339233736,0.95137,2630.9,2630.8,0.00177013]
[1645339233936,0.95137,2630.9,2630.5,0.0008]
[1645339234136,2.40274,2631.0,2630.5,0.0008]
[1645339234137,0.5,2631.0,2630.5,0.0008]
[1645339234968,1.0,2630.9,2629.8,0.00096]
[1645339235170,0.01243715,2630.7,2629.8,0.00096]
[1645339235366,1.4055722,2630.6,2629.8,0.00096]
[1645339235567,1.4055722,2630.6,2629.5,0.00096]
[1645339235568,1.7055722,2630.6,2629.5,0.00096]
[1645339235766,1.7055722,2630.6,2629.3,3.5]
[1645339235767,0.3,2630.5,2629.3,3.5]
[1645339235970,1.0,2629.9,2629.5,1.0774885]
[1645339236165,1.0,2629.9,2629.6,0.00096]
[1645339236365,1.0,2629.9,2629.5,1.0774885]
[1645339236765,0.19,2630.5,2629.5,1.0774885]
[1645339236967,3.04483,2630.8,2629.7,12.5074885]
[1645339237167,0.5,2631.8,2629.9,12.5074885]
[1645339237168,3.09988,2631.2,2629.9,12.5074885]
[1645339237365,1.90258,2631.2,2630.0,1.0774885]
[1645339237568,1.90258,2631.2,2630.2,1.0774885]
[1645339237970,2.09261,2631.5,2630.5,12.5074885]
[1645339237971,0.19,2631.5,2630.5,12.5074885]
[1645339238170,0.5,2631.8,2630.7,12.5074885]
[1645339238426,0.5,2631.8,2630.9,11.43]
[1645339238624,2.7734,2632.4,2631.1,11.43]
[1645339238833,1.14002952,2632.6,2631.4,1.0774885]
[1645339239022,0.95083,2632.3,2631.4,1.0774885]
[1645339241021,0.3,2632.3,2631.5,1.0774885]
[1645339241327,1.90213,2632.1,2631.5,1.0774885]
[1645339241524,2.50213,2632.1,2631.5,1.0774885]
[1645339241920,2.29456328,2631.9,2631.5,1.0774885]
[1645339242176,2.85384,2631.9,2631.5,1.0774885]
[1645339242370,1.95125,2631.8,2631.5,1.0774885]
[1645339242569,2.25125,2631.8,2631.5,1.0774885]
[1645339243377,0.95125,2631.8,2631.5,1.0774885]
[1645339244471,0.95092,2632.0,2631.5,1.0774885]
[1645339245922,0.95092,2632.0,2631.6,1.0774885]
[1645339250271,1.0,2632.2,2631.6,1.0774885]
[1645339250670,0.95086,2632.4,2631.6,1.0774885]
[1645339251072,0.95086,2632.4,2631.7,1.0774885]
[1645339251274,1.95086,2632.4,2631.9,1.0774885]
[1645339251473,1.90189,2632.3,2631.9,1.0774885]
[1645339251678,0.3749,2632.2,2631.9,1.0774885]
[1645339251886,3.09179,2632.3,2631.9,1.0774885]
[1645339252275,2.90189,2632.3,2631.9,1.0774885]
[1645339252473,1.14106,2632.2,2631.9,1.0774885]
[1645339252674,0.95117,2632.1,2631.9,1.0774885]
[1645339252875,0.1899,2632.0,2631.9,1.0774885]
[1645339253344,1.55117,2632.1,2631.9,1.0774885]
[1645339253345,2.14107,2632.1,2631.9,1.0774885]
[1645339253531,1.95117,2632.1,2631.9,1.0774885]
[1645339253731,0.95117,2632.1,2631.9,1.0774885]
[1645339254933,0.95079,2632.5,2631.9,1.0774885]
[1645339255832,0.95079,2632.5,2632.2,1.0774885]
[1645339256033,0.95079,2632.5,2632.3,1.0774885]
[1645339258071,25.5,2632.4,2631.7,0.93408929]
[1645339258274,8.5,2632.3,2631.7,0.93408929]
[1645339258471,0.01253354,2632.1,2631.7,0.93408929]
[1645339258674,1.14126,2632.2,2631.7,0.93408929]
[1645339258873,0.95136,2632.2,2631.7,0.93408929]
[1645339259072,0.95136,2632.2,2631.9,0.93408929]
[1645339259480,0.13819997,2632.7,2631.9,0.93408929]
[1645339259481,0.95078,2632.5,2631.9,0.93408929]
[1645339259673,2.03977997,2632.7,2631.9,0.93408929]
[1645339260277,1.90158,2632.7,2631.9,0.93408929]
[1645339260480,0.50007,2632.8,2632.4,0.93408929]
[1645339260940,7e-05,2632.8,2632.4,0.93408929]
[1645339261339,7e-05,2632.8,2632.5,0.93408929]
[1645339263244,7e-05,2632.8,2632.6,12.36408929]
[1645339263540,7e-05,2632.8,2632.6,13.66238929]
[1645339264241,7e-05,2632.8,2632.6,2.23238929]
[1645339264443,7e-05,2632.8,2632.6,0.93408929]
[1645339265578,0.95071,2632.8,2632.6,0.93408929]
[1645339273375,1.90153,2633.4,2632.6,0.93408929]
[1645339273376,0.51290238,2634.0,2632.9,0.93408929]
[1645339273575,0.454,2635.1,2632.9,0.93408929]
[1645339273576,0.9926746,2634.8,2633.1,0.93408929]
[1645339273772,0.9926746,2634.8,2633.3,0.94627401]
[1645339273773,0.95005,2634.5,2633.3,0.94627401]
[1645339273972,0.01280962,2634.0,2633.5,0.93408929]
[1645339274174,0.00320129,2634.9,2634.6,0.93408929]
[1645339274374,0.00320129,2634.9,2634.7,0.93408929]
[1645339274774,1.9001,2634.8,2634.7,0.93408929]
[1645339274975,0.95003,2634.8,2634.7,0.93408929]
[1645339275826,0.5,2634.9,2634.7,0.93408929]
[1645339276024,2.06566163,2635.2,2634.7,0.93408929]
[1645339276226,0.0031942,2634.9,2634.7,0.93408929]
[1645339276825,1.9035842,2634.9,2634.7,0.93408929]
[1645339277227,26.83693216,2634.8,2633.4,7.0481]
[1645339277529,0.95037,2634.4,2633.5,1.13247065]
[1645339277725,1.25046,2634.3,2633.5,1.13247065]
[1645339277924,1.55046,2634.3,2632.9,3.5]
[1645339278131,1.03657616,2634.2,2632.9,3.5]
[1645339278328,0.5,2633.0,2632.9,3.6897]
[1645339278526,0.5,2633.0,2632.9,0.1897]
[1645339278726,0.00322947,2634.1,2632.9,0.1897]
[1645339278925,0.00322947,2634.1,2633.0,1.5]
[1645339279126,0.00322947,2634.1,2633.1,0.1897]
[1645339279326,0.00322947,2634.1,2633.9,0.87975996]
[1645339279576,0.95019,2634.3,2633.9,0.87975996]
[1645339279772,0.5,2634.7,2633.9,0.87975996]
[1645339279976,0.00322947,2634.1,2633.9,0.87975996]
[1645339280775,0.5,2634.7,2633.9,0.87975996]
[1645339280973,0.5,2634.7,2634.3,1.02350509]
[1645339282475,0.00322995,2634.6,2634.5,1.19190086]
[1645339282679,0.00322995,2634.6,2634.0,0.1897]
[1645339282877,0.00322995,2634.6,2633.9,7.4581]
[1645339283076,3.50322995,2634.6,2633.9,7.4581]
[1645339283337,1.3,2634.5,2633.9,7.4581]
[1645339283720,0.5,2634.7,2633.9,7.4581]
[1645339283721,0.00322996,2634.4,2633.9,7.4581]
[1645339283922,0.00322996,2634.4,2634.1,0.96829039]
[1645339283923,0.95348996,2634.4,2634.1,0.96829039]
[1645339284124,0.00322996,2634.4,2634.1,0.96829039]
[1645339284522,0.5,2634.7,2634.1,0.96829039]
[1645339284725,0.5,2634.7,2634.1,1.56829039]
[1645339284726,0.00323378,2634.4,2634.1,1.56829039]
[1645339284930,0.00323378,2634.4,2634.2,0.9498575]
[1645339285230,3.378e-05,2634.4,2634.2,12.6798575]
[1645339285426,3.378e-05,2634.4,2634.3,0.1897]
[1645339285623,0.5,2634.7,2634.3,0.1897]
[1645339286225,0.5,2635.2,2634.4,1.18617102]
[1645339286427,0.5,2635.2,2634.5,0.9496793]
[1645339287276,0.5,2635.2,2635.1,0.84160445]
[1645339287476,0.5,2635.2,2635.1,0.79160445]
[1645339288076,0.45,2635.2,2634.3,0.1897]
[1645339288278,0.45,2635.2,2635.0,0.77]
[1645339288480,0.4496,2635.2,2635.0,0.77]
[1645339289081,0.4496,2635.2,2635.1,1.15756743]
[1645339289481,0.45283523,2635.2,2635.1,1.15756743]
[1645339290384,0.4496,2635.2,2635.1,1.15756743]
[1645339290828,0.00323523,2635.3,2635.1,1.15756743]
[1645339291025,0.00323523,2635.3,2635.0,0.77]
[1645339291026,3.523e-05,2635.3,2635.0,0.77]
[1645339291225,3.523e-05,2635.3,2635.0,1.07]
[1645339291426,3.523e-05,2635.3,2635.1,0.9495072]
[1645339291622,0.4496,2635.8,2635.1,0.9495072]
[1645339292323,0.4496,2635.8,2635.2,5.4973168]
[1645339292523,0.4496,2635.8,2635.4,11.43]
[1645339292724,0.4496,2635.8,2635.4,4.1]
[1645339292929,0.4496,2635.8,2635.4,12.03]
[1645339293126,0.00329322,2635.8,2635.4,0.6]
[1645339293324,0.00329322,2635.8,2635.4,0.4897]
[1645339293525,0.00329322,2635.8,2635.5,0.9492436]
[1645339293725,0.00329322,2635.8,2635.5,1.2492436]
[1645339294123,1.8988,2636.7,2636.0,0.86531705]
[1645339294323,1.8988,2636.7,2635.3,1.8988075]
[1645339294578,5.0,2636.3,2635.0,0.77]
[1645339294779,4.17334,2636.6,2635.0,0.77]
[1645339294780,6.89928,2636.1,2635.0,0.77]
[1645339295176,2.49928,2636.1,2635.0,0.77]
[1645339295378,3.49928,2636.1,2635.0,1.9303728]
[1645339295580,2.49928,2636.1,2635.0,1.9303728]
[1645339295777,2.49928,2636.1,2635.0,0.77]
[1645339295778,1.0,2636.0,2635.0,0.77]
[1645339295979,3.49928,2636.1,2635.0,0.77]
[1645339296778,3.49928,2636.1,2635.2,0.95452408]
[1645339296979,0.94964,2636.0,2635.0,0.77]
[1645339297383,1.94964,2636.0,2635.0,0.77]
[1645339297877,0.00323656,2635.7,2635.0,0.77]
[1645339298081,0.00323656,2635.7,2635.0,1.75446747]
[1645339298335,0.95289656,2635.7,2635.0,1.75446747]
[1645339298827,0.94966,2635.7,2635.0,1.75446747]
[1645339299231,0.95289638,2635.7,2635.0,0.77]
[1645339299734,5.0,2635.6,2635.0,0.77]
[1645339299929,4.90103254,2635.7,2635.0,0.77]
[1645339300132,0.94989,2635.6,2635.0,0.77]
[1645339300328,1.19098994,2635.4,2635.0,0.77]
[1645339300833,2.49098994,2635.4,2635.0,0.77]
[1645339301227,5.0,2635.3,2635.0,0.77]
[1645339301630,1.90003,2635.1,2635.0,0.77]
[1645339301828,2.20003,2635.1,2635.0,0.77]
[1645339302075,2.50003,2635.1,2635.0,0.77]
[1645339302278,3.50003,2635.1,2635.0,0.77]
[1645339303383,3.50003,2635.1,2633.9,7.0176]
[1645339303384,0.95017,2634.8,2633.9,7.0176]
[1645339303776,0.6,2634.8,2633.9,7.0176]
[1645339304176,0.95011,2634.9,2633.9,7.0176]
[1645339304177,1.90026,2634.6,2634.1,1.1735809]
[1645339304379,1.3,2634.8,2634.1,1.1735809]
[1645339304578,2.35409,2635.3,2634.1,1.1735809]
[1645339305177,10.20431,2635.3,2634.1,1.1735809]
[1645339305381,1.9,2635.0,2633.9,7.0176]
[1645339305579,6.90067,2634.8,2633.2,13.8905]
[1645339305829,0.95034,2634.3,2633.3,1.61413772]
[1645339306034,1.25034,2634.3,2633.3,1.61413772]
[1645339306231,0.6,2634.3,2633.3,1.61413772]
[1645339306429,0.6,2634.3,2633.8,1.12234273]
[1645339306632,0.3,2634.3,2633.8,1.12234273]
[1645339306827,0.95031,2634.0,2633.2,17.2008]
[1645339307029,2.20067,2634.4,2634.0,0.77144763]
[1645339307230,1.0,2634.3,2634.0,0.77144763]
[1645339307432,2.20067,2634.4,2634.0,0.77144763]
[1645339307631,0.3,2634.3,2634.0,0.77144763]
[1645339307830,1.0,2634.3,2634.0,0.77144763]
[1645339308131,1.3,2634.3,2634.0,0.77144763]
[1645339308534,1.0,2634.3,2634.0,0.77144763]
[1645339308730,1.95034,2634.3,2634.0,0.77144763]
[1645339308930,1.95032,2634.3,2634.0,0.77144763]
[1645339310977,1.28628561,2634.6,2634.0,0.77144763]
[1645339311184,0.95005,2634.6,2634.0,0.77144763]
[1645339311478,0.0032,2635.1,2634.0,0.77144763]
[1645339311977,0.19803786,2635.4,2634.6,1.14948562]
[1645339312176,0.20123786,2635.4,2634.6,1.14948562]
[1645339312380,1.89996,2635.1,2634.6,1.14948562]
[1645339313076,2.89996,2635.1,2634.6,1.14948562]
[1645339313324,0.94995,2635.2,2634.6,1.14948562]
[1645339313529,1.0,2635.4,2634.6,1.14948562]
[1645339313730,36.21098822,2635.5,2634.6,1.14948562]
[1645339313926,1.89966,2635.5,2634.8,0.9497139]
[1645339314131,0.95294,2635.6,2634.8,0.9497139]
[1645339314530,0.94974,2635.6,2634.4,7.3106]
[1645339314727,0.94974,2635.6,2634.2,0.1897]
[1645339314925,0.94974,2635.6,2634.1,6.8573]
[1645339314926,0.454,2635.5,2634.1,6.8573]
[1645339315325,1.90028,2634.9,2634.2,1.02273668]
[1645339316332,1.90028,2634.9,2634.1,6.8573]
[1645339316333,0.95014,2634.8,2634.1,6.8573]
[1645339316529,1.95014,2634.8,2634.1,6.8573]
[1645339316730,1.90053,2634.6,2634.1,6.8573]
[1645339317185,0.3,2634.5,2634.1,6.8573]
[1645339317380,1.3,2634.5,2634.1,6.8573]
[1645339317580,1.3,2634.5,2634.0,0.77144763]
[1645339317980,2.25026,2634.5,2634.0,0.77144763]
[1645339318586,4.24550846,2634.5,2634.0,0.77144763]
[1645339318889,3.20056,2634.5,2634.0,0.77144763]
[1645339319387,0.95053,2634.2,2633.4,7.0023]
[1645339319583,0.95049,2634.1,2633.4,7.0023]
[1645339320387,0.95057,2633.9,2633.4,7.0023]
[1645339320829,1.95057,2633.9,2633.4,7.0023]
[1645339321028,0.95057,2633.9,2633.4,7.0023]
[1645339321333,2.55057,2633.9,2633.1,0.6]
[1645339321531,0.95061,2633.7,2633.1,0.6]
[1645339321725,1.135,2633.5,2633.1,0.6]
[1645339322426,1.135,2633.3,2633.1,0.6]
[1645339323027,3.15188,2633.7,2633.1,0.6]
[1645339323028,1.135,2633.2,2633.1,0.6]
[1645339323826,1.135,2633.2,2633.1,1.55318515]
[1645339325001,1.135,2633.2,2633.1,0.6]
[1645339326002,3.03622,2633.2,2633.1,0.6]
[1645339327605,1.135,2633.2,2633.1,0.6]
[1645339328206,1.135,2633.2,2633.0,1.5]
[1645339328633,1.135,2633.2,2633.1,1.04529717]
[1645339331232,1.0,2634.3,2633.7,0.94988663]
[1645339331635,0.95025,2634.0,2633.4,7.0833]
[1645339332772,0.95025,2634.0,2633.5,1.17798025]
[1645339336222,1.95025,2634.0,2633.5,1.17798025]
[1645339336922,0.95025,2634.0,2633.5,1.17798025]
[1645339337322,1.95025,2634.0,2633.4,7.0833]
[1645339338521,1.95025,2634.0,2633.5,0.93136261]
[1645339338923,1.95025,2634.0,2633.4,7.0833]
[1645339339124,2.55025,2634.0,2633.4,7.0833]
[1645339339427,1.95025,2634.0,2633.4,7.0833]
[1645339340077,1.95025,2634.0,2633.7,0.96631481]
[1645339341280,0.95025,2634.0,2633.7,0.96631481]
[1645339341779,0.95025,2634.0,2633.4,7.0833]
[1645339342783,0.95025,2634.0,2633.5,1.17761446]
[1645339343731,0.95025,2634.0,2633.4,7.0833]
[1645339343931,1.95025,2634.0,2633.4,7.0833]
[1645339349579,0.95025,2634.0,2633.4,7.0833]
[1645339349782,0.95025,2634.0,2633.6,1.02698803]
[1645339349978,1.95025,2634.0,2633.6,1.02698803]
[1645339350482,0.13819997,2634.2,2633.6,1.02698803]
[1645339350684,0.95013,2634.3,2633.6,1.02698803]
[1645339350934,1.55013,2634.3,2633.6,1.02698803]
[1645339351131,0.95013,2634.3,2633.6,1.02698803]
[1645339351332,0.95013,2634.3,2634.1,0.93658124]
[1645339351939,0.0032,2635.0,2634.2,47.0]
[1645339352137,0.1472,2636.0,2634.2,47.0]
[1645339352138,3.50322256,2635.7,2634.2,47.454]
[1645339352344,3.5,2635.6,2634.3,0.1897]
[1645339352532,0.94969,2635.5,2634.3,0.1897]
[1645339352935,5.9828256,2635.8,2635.2,1.13343817]
[1645339353133,2.4828256,2635.8,2635.2,1.13343817]
[1645339353334,0.0032234,2635.7,2635.2,1.13343817]
[1645339353536,0.9528334,2635.7,2635.2,1.13343817]
[1645339354133,0.0032234,2635.7,2635.2,2.08297017]
[1645339354334,0.5,2635.9,2635.2,2.08297017]
[1645339354575,0.00322407,2635.7,2635.2,2.08297017]
[1645339354777,0.00322407,2635.7,2634.8,6.4261]
[1645339354982,0.94965,2635.6,2634.8,6.4261]
[1645339355175,0.94965,2635.6,2634.8,6.2364]
[1645339355981,0.94965,2635.6,2635.0,0.98123672]
[1645339356982,0.94965,2635.6,2634.9,0.9496289]
[1645339357586,0.94965,2635.6,2634.8,6.2364]
[1645339357788,5.04965,2635.6,2634.8,6.2364]
[1645339357983,4.1,2635.6,2634.6,0.85648193]
[1645339358182,4.1,2635.6,2634.3,6.0322]
[1645339358183,0.94993,2635.2,2634.3,6.0322]
[1645339358439,3.5,2635.1,2634.3,6.0322]
[1645339358640,1.08611616,2635.5,2634.3,7.931712]
[1645339358641,1.0,2635.5,2634.3,7.931712]
[1645339358839,0.00322532,2635.7,2634.4,1.80340626]
[1645339359038,0.57570121,2635.8,2634.4,1.80340626]
[1645339359039,1.8,2635.9,2634.4,1.139456]
[1645339359339,0.9528449,2635.7,2634.5,11.43]
[1645339359538,0.9528449,2635.7,2635.5,0.86515877]
[1645339359738,0.0032249,2635.7,2635.5,0.86515877]
[1645339360144,0.5,2635.9,2635.6,45.5]
[1645339360540,0.5,2636.5,2635.5,0.86515877]
[1645339360741,0.00322575,2635.7,2635.5,0.86515877]
[1645339361541,0.96236047,2636.2,2635.5,0.86515877]